bitfinex-derivatives/quotes_SOLF0:USTF0_20250127
["timestamp","ask_amount","ask_price","bid_price","bid_amount"]
[1737991514105,2.3374,234.7,234.49,16.5342905]
[1737991514312,16.5342905,234.64,234.44,2.8507]
[1737991514508,0.02774514,234.62,234.57,6.025e-05]
[1737991514807,0.02774514,234.62,234.26,309.5342905]
[1737991514808,16.5342905,234.6,234.37,16.5342905]
[1737991515102,2.7663,234.59,234.37,16.5342905]
[1737991515302,3.36531323,234.58,234.37,16.5342905]
[1737991515502,5.70271323,234.58,234.37,16.5342905]
[1737991515699,4.29339319,234.5,234.45,0.03279544]
[1737991515900,0.02929319,234.5,234.37,16.5342905]
[1737991516505,0.02929319,234.5,234.23,177.17407429]
[1737991516705,2.2421,234.51,234.28,0.76412123]
[1737991517015,2.2421,234.51,234.31,16.5342905]
[1737991517202,0.02998955,234.42,234.37,0.03054466]
[1737991518610,0.02998955,234.42,234.27,16.5342905]
[1737991518806,2.7137,234.46,234.27,16.5342905]
[1737991519208,4.2656,234.42,234.27,20.8024905]
[1737991519409,3.37289102,234.45,234.27,16.5342905]
[1737991519908,0.03070144,234.38,234.34,0.03039583]
[1737991521501,0.03070144,234.38,234.34,4.29739583]
[1737991521701,0.03070144,234.38,234.34,0.03039583]
[1737991524210,0.03070144,234.38,234.34,4.29729583]
[1737991524514,0.03070144,234.38,234.34,0.03039583]
[1737991524711,2.7137,234.46,234.36,16.5342905]
[1737991524910,2.3127,234.5,234.4,16.5342905]
[1737991525707,2.3127,234.5,234.36,16.5342905]
[1737991525911,2.3127,234.5,234.4,4.2659]
[1737991526109,0.02936208,234.47,234.43,0.03034279]
[1737991529215,0.02936208,234.47,234.28,16.5342905]
[1737991529216,0.02936208,234.47,234.32,16.5342905]
[1737991529418,4.2649,234.46,234.32,16.5342905]
[1737991529806,2.3127,234.5,234.32,16.5342905]
[1737991530414,0.02819937,234.43,234.39,0.02858713]
[1737991531809,0.02819937,234.43,234.41,4.2657]
[1737991532015,0.02819937,234.43,234.39,0.02858713]
[1737991532915,0.02819937,234.43,234.41,4.2658]
[1737991533609,0.02819937,234.43,234.42,4.2656]
[1737991534518,2.6272,234.57,234.4,16.5342905]
[1737991534720,4.2643,234.5,234.4,16.5342905]
[1737991534915,2.4263,234.56,234.42,4.2656]
[1737991535212,4.2642,234.5,234.4,16.5342905]
[1737991535418,2.4263,234.56,234.4,16.5342905]
[1737991535616,0.02867472,234.47,234.43,0.03020309]
[1737991535912,4.2647,234.47,234.43,0.03020309]
[1737991536113,0.03009301,234.47,234.43,0.03020309]
[1737991536313,4.2652,234.44,234.43,0.03020309]
[1737991536617,0.03009301,234.47,234.35,4.2667]
[1737991536817,4.2655,234.43,234.35,4.2667]
[1737991537017,4.2655,234.43,234.32,16.5342905]
[1737991537214,16.5342905,234.53,234.32,16.5342905]
[1737991537612,0.03201544,234.45,234.4,0.02791003]
[1737991538417,4.2658,234.41,234.4,0.02791003]
[1737991538613,2.2036,234.44,234.24,2.6561]
[1737991538919,16.5342905,234.41,234.2,16.5342905]
[1737991539116,2.6518,234.43,234.24,16.5342905]
[1737991539410,4.2662,234.39,234.3,4.2677]
[1737991539610,3.37197789,234.42,234.19,2.6258]
[1737991539817,0.02817,234.37,234.32,0.03224399]
[1737991540012,4.2674,234.32,234.23,4.269]
[1737991540214,0.02817,234.37,234.16,16.5342905]
[1737991540413,2.2036,234.31,234.17,0.76379153]
[1737991540618,2.7606,234.3,234.13,2.6258]
[1737991540916,2.7606,234.3,234.14,0.76385772]
[1737991541317,4.2691,234.23,234.2,0.0286344]
[1737991541517,0.03068445,234.24,234.2,0.0286344]
[1737991545414,0.03068445,234.24,234.23,4.2691]
[1737991547417,0.03068445,234.24,234.2,0.0286344]
[1737991548525,4.8118,234.38,234.2,16.5629249]
[1737991548722,4.8118,234.38,234.25,16.5342905]
[1737991549117,4.2667,234.37,234.3,4.2678]
[1737991549423,4.2667,234.37,234.25,16.5342905]
[1737991549624,4.8118,234.38,234.25,16.5342905]
[1737991549825,0.03202771,234.33,234.29,0.02830126]
[1737991550125,0.03202771,234.33,234.31,4.2676]
[1737991550423,0.03202771,234.33,234.32,4.2674]
[1737991551016,0.03202771,234.33,234.29,0.02830126]
[1737991552229,4.2682,234.28,234.21,4.2694]
[1737991552428,4.2682,234.28,234.16,16.5342905]
[1737991552627,4.2682,234.28,234.17,0.76381929]
[1737991552828,4.2682,234.28,234.21,4.2694]
[1737991553326,4.2668,234.36,234.29,4.2679]
[1737991553533,0.03281383,234.27,234.24,16.5342905]
[1737991553722,2.1893,234.42,234.3,0.02862599]
[1737991553922,4.2662,234.39,234.29,4.2679]
[1737991554124,2.1893,234.42,234.24,16.5342905]
[1737991554322,2.1893,234.42,234.25,2.5703]
[1737991554529,4.2661,234.4,234.33,4.2671]
[1737991554727,4.2661,234.4,234.25,2.5703]
[1737991554728,2.1893,234.42,234.28,16.5342905]
[1737991554926,0.0282376,234.39,234.34,0.03128141]
[1737991555327,0.0282376,234.39,234.36,4.2666]
[1737991555730,0.0282376,234.39,234.35,4.2669]
[1737991555932,0.0282376,234.39,234.34,0.03128141]
[1737991557030,0.0282376,234.39,234.34,4.29818141]
[1737991557436,0.0282376,234.39,234.34,0.03128141]
[1737991558539,4.2667,234.36,234.34,0.03128141]
[1737991558839,0.0282376,234.39,234.34,0.03128141]
[1737991559034,2.2304,234.38,234.34,0.03128141]
[1737991559334,4.2667,234.36,234.34,0.03128141]
[1737991559941,2.2304,234.38,234.17,0.3307]
[1737991560244,16.5342905,234.34,234.18,0.763357]
[1737991560442,4.2697,234.2,234.08,16.5342905]
[1737991560639,4.2697,234.2,234.09,0.76426324]
[1737991560841,4.2688,234.25,234.16,4.2703]
[1737991561035,2.6572,234.29,234.12,16.5342905]
[1737991561240,0.03284774,234.23,234.18,0.02951475]
[1737991561437,0.03284774,234.23,234.22,4.2692]
[1737991561946,2.2304,234.38,234.2,16.5342905]
[1737991562136,2.2304,234.38,234.25,16.5342905]
[1737991562737,2.2304,234.38,234.29,4.2679]
[1737991562946,2.2304,234.38,234.25,16.5342905]
[1737991563147,0.02829077,234.36,234.31,0.02966777]
[1737991564444,0.02829077,234.36,234.31,4.29726777]
[1737991564648,0.02829077,234.36,234.31,0.02966777]
[1737991565047,0.02829077,234.36,234.34,4.267]
[1737991565249,0.02829077,234.36,234.31,0.02966777]
[1737991566051,0.02829077,234.36,234.32,4.2673]
[1737991566347,0.02829077,234.36,234.31,0.02966777]
[1737991568148,0.02829077,234.36,234.17,2.5655]
[1737991568348,4.2676,234.31,234.22,4.2692]
[1737991568547,4.2676,234.31,234.17,2.5655]
[1737991568943,4.2676,234.31,234.23,4.269]
[1737991569145,0.03008829,234.26,234.22,0.03126105]
[1737991569345,2.2052,234.37,234.25,4.2687]
[1737991569546,0.03217545,234.33,234.22,0.02840646]
[1737991569753,0.03217545,234.33,234.24,16.5342905]
[1737991570050,2.6955,234.42,234.25,0.02828323]
[1737991570247,0.0318249,234.31,234.28,16.5342905]
[1737991570450,2.238,234.46,234.31,0.03258818]
[1737991570648,2.238,234.46,234.33,16.5342905]
[1737991571656,0.02715176,234.42,234.37,0.03096902]
[1737991572852,0.02715176,234.42,234.38,16.5342905]
[1737991573053,2.1619,234.55,234.38,16.5342905]
[1737991573454,2.1619,234.55,234.42,4.2656]
[1737991573650,2.1619,234.55,234.38,16.5342905]
[1737991574050,4.2638,234.52,234.38,16.5342905]
[1737991574257,8.9e-05,234.49,234.44,0.03201368]
[1737991574456,17.73840472,234.61,234.48,16.5342905]
[1737991575454,0.02931249,234.55,234.5,0.03003759]
[1737991575857,0.02931249,234.55,234.53,4.2636]
[1737991576153,0.02931249,234.55,234.5,0.03003759]
[1737991576656,0.02931249,234.55,234.52,4.2637]
[1737991576876,0.02931249,234.55,234.5,0.03003759]
[1737991577858,0.02931249,234.55,234.53,4.2635]
[1737991578559,0.02931249,234.55,234.5,0.03003759]
[1737991578753,0.02931249,234.55,234.51,4.2638]
[1737991579158,0.02931249,234.55,234.5,0.03003759]
[1737991579360,0.02931249,234.55,234.52,4.2638]
[1737991579860,0.02931249,234.55,234.5,0.03003759]
[1737991580157,0.02931249,234.55,234.51,4.2639]
[1737991580358,0.02931249,234.55,234.5,0.03003759]
[1737991580559,0.02931249,234.55,234.51,4.2638]
[1737991580759,0.02931249,234.55,234.5,0.03003759]
[1737991581262,0.02931249,234.55,234.53,4.2636]
[1737991581760,0.02931249,234.55,234.54,4.2634]
[1737991582859,1.60581108,234.76,234.58,4.2626]
[1737991583065,16.5342905,234.74,234.58,4.2626]
[1737991583262,16.5342905,234.74,234.52,16.5342905]
[1737991583462,4.2608,234.69,234.6,4.2621]
[1737991583658,16.5342905,234.74,234.56,16.5342905]
[1737991583860,16.5342905,234.74,234.52,16.5342905]
[1737991584157,4.2616,234.64,234.63,0.02921201]
[1737991585153,0.03033048,234.67,234.63,0.02921201]
[1737991585754,1.60581108,234.76,234.66,4.2612]
[1737991585961,1.60581108,234.76,234.69,16.5342905]
[1737991586258,1.60581108,234.76,234.75,4.2596]
[1737991587264,2.1101,234.86,234.77,16.5342905]
[1737991587464,4.9636,234.93,234.81,16.5342905]
[1737991588458,4.9636,234.93,234.82,0.02722273]
[1737991588664,4.2568,234.91,234.84,4.2579]
[1737991589162,2.7622,235.01,234.82,0.02722273]
[1737991589359,4.2554,234.99,234.85,16.5342905]
[1737991589560,2.2014,235.01,234.96,16.5342905]
[1737991589763,4.2546,235.03,234.96,16.5342905]
[1737991590065,4.3971,235.05,234.96,0.02773169]
[1737991590466,4.3971,235.05,234.91,16.5342905]
[1737991590664,4.3971,235.05,234.98,4.807e-05]
[1737991591958,0.02823662,235.04,234.98,4.807e-05]
[1737991592264,4.2552,234.99,234.98,4.807e-05]
[1737991593864,16.5342905,235.01,234.79,16.5342905]
[1737991594061,16.5342905,234.93,234.71,16.5342905]
[1737991594261,16.5342905,234.89,234.72,0.78205321]
[1737991594464,4.2597,234.75,234.68,0.78205321]
[1737991594661,16.5342905,234.85,234.67,3.62]
[1737991595064,4.26,234.73,234.67,3.62]
[1737991595665,0.02764383,234.72,234.68,0.03061007]
[1737991598365,4.28784383,234.72,234.68,0.03061007]
[1737991598571,0.02764383,234.72,234.68,0.03061007]
[1737991598964,2.3258,234.86,234.7,26.75149527]
[1737991599267,2.6883,234.92,234.79,26.75149527]
[1737991599467,4.2559,234.96,234.88,4.2572]
[1737991599960,4.2559,234.96,234.84,26.75149527]
[1737991600165,4.2559,234.96,234.89,4.257]
[1737991600363,4.2559,234.96,234.9,0.02937631]
[1737991600759,4.2561,234.95,234.9,0.02937631]
[1737991600969,2.3258,235.0,234.9,0.02937631]
[1737991602070,6.581,235.0,234.91,4.2567]
[1737991602467,2.3258,235.0,234.94,4.2561]
[1737991603272,2.3258,235.0,234.9,0.02937631]
[1737991605374,4.2558,234.96,234.9,0.02937631]
[1737991605674,2.3258,235.0,234.9,0.02937631]
[1737991606372,4.2566,234.92,234.9,0.02937631]
[1737991607171,2.3258,235.0,234.81,0.78189633]
[1737991607372,29.07729527,235.0,234.81,0.78189633]
[1737991607573,29.07729527,235.0,234.77,0.78201734]
[1737991607772,29.07729527,235.0,234.76,26.75149527]
[1737991607974,29.07729527,235.0,234.77,0.78201422]
[1737991608472,0.02993941,234.91,234.86,0.02755632]
[1737991609176,4.2574,234.88,234.86,0.02755632]
[1737991609868,4.2578,234.85,234.76,26.75149527]
[1737991610074,0.02993941,234.91,234.72,26.75149527]
[1737991610372,4.2582,234.83,234.75,4.2596]
[1737991610766,26.75149527,234.88,234.68,26.75149527]
[1737991610972,0.03263938,234.81,234.77,0.02988843]
[1737991612069,0.03263938,234.81,234.46,231.17022857]
[1737991612271,26.75149527,234.85,234.63,26.75149527]
[1737991612479,2.1701,234.84,234.63,26.75149527]
[1737991612671,2.1701,234.84,234.64,0.78229053]
[1737991613070,2.1701,234.84,234.65,4.2614]
[1737991613071,4.259,234.78,234.65,4.2614]
[1737991613374,0.02950238,234.76,234.72,0.0304926]
[1737991614070,4.28900238,234.76,234.72,0.0304926]
[1737991614276,0.02950238,234.76,234.72,0.0304926]
[1737991616474,4.2598,234.75,234.67,4.261]
[1737991616669,0.02950238,234.76,234.59,26.75149527]
[1737991616875,2.5867,234.75,234.6,0.78252548]
[1737991617373,2.5867,234.75,234.56,0.78252548]
[1737991617576,2.5867,234.75,234.57,0.78267102]
[1737991617773,0.03180406,234.68,234.64,4.2616]
[1737991618169,0.03180406,234.68,234.67,4.261]
[1737991618571,0.03180406,234.68,234.63,0.03254996]
[1737991618774,0.03180406,234.68,234.65,4.2612]
[1737991619175,0.03180406,234.68,234.63,0.03254996]
[1737991619373,0.03180406,234.68,234.66,4.2612]
[1737991620083,0.03180406,234.68,234.63,0.03254996]
[1737991620674,0.03180406,234.68,234.51,16.48276169]
[1737991620980,16.48276169,234.69,234.47,16.48276169]
[1737991621182,4.262,234.62,234.54,4.2634]
[1737991621391,2.3171,234.68,234.54,4.2634]
[1737991621777,0.02870935,234.63,234.59,0.0294135]
[1737991621978,0.02870935,234.63,234.56,4.2629]
[1737991622185,0.02870935,234.63,234.47,16.48276169]
[1737991622377,4.2614,234.65,234.51,16.48276169]
[1737991622681,2.3171,234.68,234.51,16.48276169]
[1737991622682,2.3171,234.68,234.52,0.78286582]
[1737991623083,4.2616,234.64,234.55,4.2631]
[1737991623279,0.0274188,234.62,234.58,0.03038968]
[1737991623782,4.2895188,234.62,234.55,4.2631]
[1737991623983,0.0274188,234.62,234.38,0.0968]
[1737991624183,0.0274188,234.62,234.36,11.51610691]
[1737991624184,16.48276169,234.6,234.31,6.6959]
[1737991624382,2.7329,234.61,234.4,0.78302831]
[1737991625186,0.02826,234.53,234.48,0.02966609]
[1737991627089,0.02826,234.53,234.52,4.2638]
[1737991627484,0.02826,234.53,234.5,4.264]
[1737991627689,0.02826,234.53,234.48,0.02966609]
[1737991628185,0.02826,234.53,234.52,4.2638]
[1737991629091,0.02826,234.53,234.48,0.02966609]
[1737991629593,0.02826,234.53,234.52,4.2638]
[1737991630190,2.6214,234.65,234.6,4.2622]
[1737991630390,2.6214,234.65,234.52,16.48276169]
[1737991630591,4.2616,234.64,234.53,0.7828643]
[1737991630796,4.2616,234.64,234.59,4.2625]
[1737991630999,2.6214,234.65,234.59,4.2625]
[1737991631296,0.03009861,234.64,234.63,4.2618]
[1737991631697,2.3171,234.68,234.53,16.48276169]
[1737991631891,0.03096316,234.66,234.61,0.02769813]
[1737991632689,0.03096316,234.66,234.62,16.48276169]
[1737991633197,0.03096316,234.66,234.65,4.2614]
[1737991633796,2.1506,234.81,234.62,16.48276169]
[1737991633999,4.8108,234.8,234.62,16.48276169]
[1737991634501,4.8108,234.8,234.63,0.78252054]
[1737991634695,4.26,234.73,234.67,4.261]
[1737991635000,0.03048418,234.74,234.69,0.02912339]
[1737991635197,4.8108,234.8,234.54,0.78267864]
[1737991636397,0.02987636,234.69,234.68,4.2608]
[1737991636901,0.02777857,234.71,234.69,4.2607]
[1737991637101,4.8108,234.8,234.57,16.48276169]
[1737991637305,0.03029901,234.72,234.68,0.0324537]
[1737991637596,4.2606,234.7,234.68,0.0324537]
[1737991638101,0.03029901,234.72,234.68,0.0324537]
[1737991638402,4.2604,234.71,234.68,0.0324537]
[1737991638927,4.2607,234.69,234.68,0.0324537]
[1737991639198,0.03029901,234.72,234.53,16.48276169]
[1737991639394,4.261,234.68,234.61,4.262]
[1737991639697,16.48276169,234.77,234.57,16.48276169]
[1737991639901,16.48276169,234.77,234.53,16.48276169]
[1737991640103,4.262,234.62,234.55,4.2631]
[1737991640500,3.6,234.74,234.56,0.02840728]
[1737991640695,0.02961239,234.61,234.45,19.07416169]
[1737991640898,18.30796169,234.65,234.45,19.07416169]
[1737991641094,4.29343715,234.55,234.47,4.2646]
[1737991642205,4.2634,234.54,234.49,0.0272502]
[1737991642800,0.03013715,234.55,234.49,0.0272502]
[1737991643005,4.2636,234.53,234.49,0.0272502]
[1737991643305,0.03013715,234.55,234.51,4.2639]
[1737991643696,0.03013715,234.55,234.53,4.2634]
[1737991643901,0.03013715,234.55,234.49,16.51001189]
[1737991644200,0.03013715,234.55,234.5,0.78293739]
[1737991644406,2.1276,234.68,234.54,16.48276169]
[1737991644603,2.1276,234.68,234.55,0.78278193]
[1737991644908,2.1276,234.68,234.58,16.48276169]
[1737991645605,0.03201658,234.65,234.61,0.0308651]
[1737991647700,0.03201658,234.65,234.61,4.2928651]
[1737991648108,0.03201658,234.65,234.62,4.2619]
[1737991649010,0.03201658,234.65,234.61,0.0308651]
[1737991649413,4.29341658,234.65,234.61,0.0308651]
[1737991650102,0.03201658,234.65,234.61,0.0308651]
[1737991650807,0.03201658,234.65,234.62,4.2618]
[1737991651509,0.03201658,234.65,234.61,0.0308651]
[1737991654115,4.2616,234.64,234.61,0.0308651]
[1737991654314,0.03201658,234.65,234.61,0.0308651]
[1737991654613,0.03201658,234.65,234.5,16.48276169]
[1737991654911,16.48276169,234.69,234.51,0.78288787]
[1737991655211,16.48276169,234.69,234.46,16.48276169]
[1737991655412,16.48276169,234.65,234.47,0.78303942]
[1737991655609,0.02696859,234.6,234.46,16.48276169]
[1737991655803,0.02696859,234.6,234.55,0.02988502]
[1737991656011,4.2626,234.59,234.55,0.02988502]
[1737991656203,0.02696859,234.6,234.55,0.02988502]
[1737991656407,0.02696859,234.6,234.56,4.263]
[1737991656611,0.02696859,234.6,234.55,0.02988502]
[1737991657509,0.02696859,234.6,234.57,4.2628]
[1737991657811,0.02696859,234.6,234.55,0.02988502]
[1737991658002,0.02696859,234.6,234.56,4.263]
[1737991658208,0.02696859,234.6,234.55,0.02988502]
[1737991658409,0.02696859,234.6,234.55,0.81267449]
[1737991658812,0.02696859,234.6,234.59,4.2625]
[1737991659818,0.02696859,234.6,234.56,4.263]
[1737991661215,4.28946859,234.6,234.56,4.263]
[1737991661813,0.02696859,234.6,234.59,4.2625]
[1737991662717,0.02696859,234.6,234.55,0.02988502]
[1737991663417,0.02696859,234.6,234.58,4.2625]
[1737991663613,0.02696859,234.6,234.55,0.02988502]
[1737991665212,2.2675,234.71,234.55,16.51264671]
[1737991665411,2.2675,234.71,234.6,16.48276169]
[1737991665622,2.2675,234.71,234.65,4.2613]
[1737991666017,2.2675,234.71,234.6,16.48276169]
[1737991666214,2.2675,234.71,234.69,4.2607]
[1737991666822,2.2675,234.71,234.68,4.2609]
[1737991667123,2.2675,234.71,234.63,0.02813571]
[1737991667323,0.0302784,234.72,234.64,16.48276169]
[1737991667519,0.0302784,234.72,234.65,0.78243291]
[1737991667824,0.0302784,234.72,234.68,16.48276169]
[1737991668024,0.0302784,234.72,234.71,4.2603]
[1737991668221,1.5109,234.8,234.68,16.48276169]
[1737991668525,1.5109,234.8,234.79,4.2589]
[1737991669124,5.7431,234.84,234.8,4.2586]
[1737991669327,0.03012084,234.82,234.8,4.2586]
[1737991669527,0.03012084,234.82,234.77,0.03213229]
[1737991670222,1.7749,235.0,234.8,16.48276169]
[1737991670419,1.539,234.98,234.86,16.48276169]
[1737991670728,1.539,234.98,234.9,16.48276169]
[1737991671123,1.3984,235.02,234.9,16.48276169]
[1737991671320,0.0324751,234.96,234.92,4.28779079]
[1737991671721,0.0324751,234.96,234.92,0.03139079]
[1737991673823,4.2562,234.94,234.92,0.03139079]
[1737991674023,0.0324751,234.96,234.92,0.03139079]
[1737991675228,0.0324751,234.96,234.93,4.2562]
[1737991675429,0.0324751,234.96,234.92,0.03139079]
[1737991676532,0.0324751,234.96,234.94,4.2561]
[1737991677240,4.2535,235.09,234.94,16.48276169]
[1737991677421,1.5236,235.24,235.03,16.48276169]
[1737991678329,1.5236,235.24,235.08,16.48276169]
[1737991678526,4.28201715,235.16,235.11,0.02912693]
[1737991679323,4.2524,235.15,235.11,0.02912693]
[1737991679526,0.02971715,235.16,235.11,0.02912693]
[1737991680125,0.02971715,235.16,235.11,4.28222693]
[1737991680430,0.02971715,235.16,235.12,26.65668059]
[1737991680729,0.02971715,235.16,235.13,4.2527]
[1737991680929,0.02971715,235.16,235.12,26.65668059]
[1737991681525,0.02971715,235.16,235.14,4.2525]
[1737991681726,0.02971715,235.16,235.12,26.65668059]
[1737991681923,0.02971715,235.16,235.13,4.2527]
[1737991682139,26.65668059,235.44,235.13,3.58]
[1737991682331,1.4589,235.33,235.19,26.65668059]
[1737991682832,1.4589,235.33,235.2,0.77828635]
[1737991683027,1.4589,235.33,235.24,26.65668059]
[1737991683223,0.02745351,235.29,235.24,26.68808806]
[1737991683429,0.02745351,235.29,235.28,26.65668059]
[1737991683729,0.02745351,235.29,235.28,30.90668059]
[1737991684528,0.02745351,235.29,235.28,26.65668059]
[1737991684838,0.02745351,235.29,235.24,0.03140747]
[1737991685230,4.27735351,235.29,235.24,0.03140747]
[1737991685534,0.02745351,235.29,235.24,0.03140747]
[1737991686126,4.25,235.28,235.24,0.03140747]
[1737991686326,0.02745351,235.29,235.24,0.03140747]
[1737991687037,26.65668059,235.66,235.28,53.31336118]
[1737991687236,4.2473,235.44,235.38,26.65668059]
[1737991687533,1.4318,235.54,235.42,26.65668059]
[1737991687840,1.4318,235.54,235.46,26.65668059]
[1737991688229,0.02887428,235.52,235.48,0.02688736]
[1737991689929,4.2449,235.57,235.51,26.65668059]
[1737991690130,1.5148,235.66,235.56,26.65668059]
[1737991690536,5.7581,235.66,235.56,26.65668059]
[1737991690747,1.5148,235.66,235.61,26.65668059]
[1737991691138,1.6794,235.81,235.61,26.65668059]
[1737991691139,4.2419,235.73,235.62,4.2438]
[1737991691331,4.2419,235.73,235.7,26.65668059]
[1737991691634,0.14911,235.78,235.7,26.65668059]
[1737991691833,0.14911,235.78,235.74,26.65668059]
[1737991692230,3.0166,235.93,235.8,26.65668059]
[1737991693039,0.03012447,235.89,235.84,26.68596745]
[1737991694035,0.03012447,235.89,235.78,26.65668059]
[1737991694240,0.03012447,235.89,235.74,26.65668059]
[1737991694437,26.65668059,235.92,235.69,26.65668059]
[1737991694740,26.65668059,235.88,235.64,26.65668059]
[1737991694940,26.65668059,235.84,235.59,3.58]
[1737991695243,26.65668059,235.8,235.49,3.58]
[1737991695442,4.2436,235.64,235.52,26.65668059]
[1737991695641,0.03184772,235.74,235.57,26.65668059]
[1737991695838,1.5448,235.79,235.58,0.77452812]
[1737991696140,1.5448,235.79,235.53,26.65668059]
[1737991696339,26.65668059,235.75,235.53,26.65668059]
[1737991696541,0.02981118,235.68,235.64,0.03005074]
[1737991696737,0.02981118,235.68,235.54,0.77486441]
[1737991696943,0.02981118,235.68,235.53,26.65668059]
[1737991697140,0.02981118,235.68,235.54,0.77496718]
[1737991697341,1.5448,235.79,235.57,26.65668059]
[1737991697542,1.5448,235.79,235.54,0.77496718]
[1737991697543,4.2435,235.65,235.54,4.2453]
[1737991697741,4.2435,235.65,235.53,26.65668059]
[1737991697939,0.03106715,235.62,235.57,0.02711694]
[1737991698544,4.2432,235.66,235.55,4.245]
[1737991698744,0.03252039,235.62,235.57,0.02781126]
[1737991699035,4.2432,235.66,235.53,26.65668059]
[1737991699241,1.4009,235.78,235.54,0.77493948]
[1737991699434,0.02763531,235.62,235.58,4.2445]
[1737991699742,1.4009,235.78,235.58,4.2445]
[1737991700042,0.02798906,235.62,235.58,4.27222088]
[1737991700242,1.4009,235.78,235.54,4.2452]
[1737991700437,1.4009,235.78,235.58,0.03116664]
[1737991700643,0.02763174,235.62,235.58,0.03116664]
[1737991700838,4.2436,235.64,235.54,0.77498205]
[1737991701146,0.02880913,235.62,235.58,0.03028199]
[1737991701340,1.4009,235.78,235.61,26.65668059]
[1737991701647,1.4009,235.78,235.65,26.65668059]
[1737991702650,0.03191854,235.74,235.69,0.03088049]
[1737991703054,0.03191854,235.74,235.69,26.68756108]
[1737991703253,1.4009,235.78,235.7,0.77373981]
[1737991703453,1.4009,235.78,235.72,4.242]
[1737991703657,1.4009,235.78,235.69,26.68756108]
[1737991703859,8.4729,236.04,235.69,0.03088049]
[1737991704057,1.5322,236.03,235.91,26.65668059]
[1737991704264,1.5322,236.03,235.96,26.65668059]
[1737991704752,1.7442,236.19,235.96,26.65668059]
[1737991704944,3.2764,236.19,235.96,26.65668059]
[1737991705145,3.2764,236.19,236.01,26.65668059]
[1737991705545,4.2343,236.16,236.06,26.65668059]
[1737991705754,3.2764,236.19,236.06,26.65668059]
[1737991706048,0.02934822,236.12,236.08,0.03026613]
[1737991706547,26.65668059,236.35,236.11,26.65668059]
[1737991706861,1.7442,236.33,236.16,26.65668059]
[1737991707552,4.2317,236.3,236.16,26.65668059]
[1737991707849,1.7442,236.33,236.22,0.03233512]
[1737991708056,1.7442,236.33,236.12,26.65668059]
[1737991708259,4.2327,236.25,236.12,26.65668059]
[1737991708457,1.7442,236.33,236.17,26.65668059]
[1737991708657,1.7442,236.33,236.21,26.65668059]
[1737991709456,0.03054377,236.29,236.25,0.0316704]
[1737991711862,4.2323,236.27,236.25,0.0316704]
[1737991712058,0.03054377,236.29,236.12,26.65668059]
[1737991712358,26.65668059,236.27,236.04,26.65668059]
[1737991712563,26.65668059,236.27,236.05,0.76986374]
[1737991712759,26.65668059,236.27,236.04,26.65668059]
[1737991713469,4.2345,236.14,236.13,8.736e-05]
[1737991714958,4.2344,236.15,236.13,8.736e-05]
[1737991715677,26.65668059,236.14,236.13,8.736e-05]
[1737991715861,26.65668059,236.14,235.92,0.77075239]
[1737991716467,4.2369,236.01,235.92,0.77075239]
[1737991716666,26.65668059,236.14,235.92,0.77075239]
[1737991717166,0.0323729,236.05,236.01,0.0288577]
[1737991717570,4.2359,236.07,235.91,26.65668059]
[1737991717866,1.8427,236.13,235.87,26.65668059]
[1737991717867,26.65668059,236.1,235.87,26.65668059]
[1737991718066,26.65668059,236.06,235.83,26.65668059]
[1737991718669,4.2388,235.91,235.83,26.65668059]
[1737991718870,0.03026262,235.97,235.83,26.65668059]
[1737991719068,26.65668059,236.06,235.85,0.03151739]
[1737991719272,4.26635821,235.92,235.85,0.03151739]
[1737991719469,4.26635821,235.92,235.83,26.65668059]
[1737991719666,4.2385,235.92,235.83,26.65668059]
[1737991719965,26.65668059,236.06,235.86,0.02826089]
[1737991719966,0.02731311,235.9,235.86,0.02826089]
[1737991720266,0.02731311,235.9,235.7,1.672]
[1737991720267,26.65668059,236.02,235.79,26.65668059]
[1737991720465,4.2386,235.92,235.83,26.65668059]
[1737991720670,0.02961243,235.9,235.86,0.02820204]
[1737991720962,0.02961243,235.9,235.87,26.65668059]
[1737991721167,1.8427,236.13,235.88,0.77184325]
[1737991721368,1.3992,236.09,235.94,26.65668059]
[1737991721762,0.03088486,236.03,235.94,26.65668059]
[1737991722070,0.03088486,236.03,235.99,0.02720731]
[1737991722268,4.237,236.01,235.99,0.02720731]
[1737991722467,1.3992,236.09,235.9,26.65668059]
[1737991722667,0.02891108,236.02,235.98,0.02859848]
[1737991722870,4.2372,235.99,235.98,0.02859848]
[1737991723270,0.02891108,236.02,235.9,26.65668059]
[1737991723569,1.3992,236.09,235.9,26.65668059]
[1737991724169,1.3992,236.09,235.91,4.2386]